bitfinex/quotes_BTCUSD_20250205
["timestamp","ask_amount","ask_price","bid_price","bid_amount"]
[1738717440686,0.01989478,98606.0,98586.0,0.10238506]
[1738717440867,0.00989478,98595.0,98586.0,0.10238506]
[1738717441065,0.00989478,98595.0,98586.0,0.22410506]
[1738717441249,0.01,98593.0,98586.0,0.15]
[1738717441458,0.01,98591.0,98581.0,0.08697304]
[1738717441676,0.01,98604.0,98590.0,0.001]
[1738717441891,0.01,98607.0,98604.0,0.121697]
[1738717442088,0.08116018,98654.0,98590.0,0.001]
[1738717442089,0.01,98613.0,98612.0,0.271688]
[1738717442253,0.01,98613.0,98612.0,0.294688]
[1738717442461,0.01,98634.0,98625.0,0.023]
[1738717442722,0.08116018,98639.0,98636.0,0.121658]
[1738717443041,0.01,98640.0,98639.0,0.023]
[1738717443279,0.01,98659.0,98640.0,0.023]
[1738717443486,0.01989478,98659.0,98658.0,0.023]
[1738717443688,0.01,98655.0,98654.0,0.121636]
[1738717443968,0.01,98655.0,98609.0,0.162256]
[1738717443969,0.01,98647.0,98610.0,0.08116018]
[1738717444107,0.01,98627.0,98624.0,0.121673]
[1738717444303,0.01,98628.0,98627.0,0.27167]
[1738717444510,0.01,98628.0,98627.0,0.173]
[1738717444827,0.25564659,98650.0,98622.0,0.15]
[1738717444828,0.01,98623.0,98622.0,0.15]
[1738717445018,0.01,98611.0,98590.0,0.162287]
[1738717445237,0.01,98605.0,98595.0,0.162278]
[1738717445432,0.01,98605.0,98573.0,0.4308]
[1738717445433,0.01,98600.0,98572.0,0.162317]
[1738717445638,0.01,98601.0,98599.0,0.15]
[1738717445838,0.01,98603.0,98601.0,0.121701]
[1738717446059,0.01,98603.0,98602.0,0.023]
[1738717446262,0.01,98606.0,98604.0,0.023]
[1738717446462,0.08116018,98632.0,98607.0,0.023]
[1738717446666,0.01,98622.0,98609.0,0.023]
[1738717446997,0.01,98625.0,98624.0,0.001]
[1738717447233,0.01,98625.0,98623.0,0.121675]
[1738717447234,0.01,98625.0,98610.0,0.10238506]
[1738717447361,0.01,98623.0,98618.0,0.12168]
[1738717447561,0.01,98625.0,98624.0,0.023]
[1738717447807,0.01,98626.0,98621.0,0.023]
[1738717448015,0.01,98623.0,98621.0,0.023]
[1738717448229,0.01,98616.0,98611.0,0.15]
[1738717448563,0.01,98623.0,98611.0,0.312252]
[1738717448769,0.01,98626.0,98625.0,0.023]
[1738717449221,0.01,98618.0,98614.0,0.15]
[1738717449420,0.01,98615.0,98614.0,0.15]
[1738717449751,0.01,98634.0,98615.0,0.023]
[1738717449930,0.01,98628.0,98627.0,0.12167]
[1738717450132,0.01,98631.0,98630.0,0.294666]
[1738717450343,0.00989478,98648.0,98632.0,0.023]
[1738717450344,0.01,98637.0,98632.0,0.023]
[1738717450546,0.08116018,98668.0,98639.0,0.173]
[1738717450789,0.01,98640.0,98639.0,0.294654]
[1738717451698,0.01857504,98647.0,98646.0,0.173]
[1738717451847,0.01857504,98647.0,98646.0,0.294647]
[1738717452052,0.01,98651.0,98650.0,0.023]
[1738717452277,0.01,98652.0,98650.0,0.023]
[1738717452496,0.01,98656.0,98651.0,0.12164]
[1738717452647,0.01,98657.0,98656.0,0.023]
[1738717452849,0.01,98637.0,98621.0,0.09106167]
[1738717453061,0.01,98637.0,98626.0,0.15457123]
[1738717453268,0.01,98637.0,98635.0,0.15]
[1738717453531,0.01,98637.0,98636.0,0.271659]
[1738717453665,0.01,98644.0,98643.0,0.12165]
[1738717453865,0.01,98646.0,98642.0,0.12165]
[1738717454096,0.00989478,98663.0,98632.0,0.023]
[1738717454431,0.01989478,98653.0,98647.0,0.121644]
[1738717454640,0.01,98646.0,98634.0,0.15]
[1738717454920,0.01,98646.0,98645.0,0.15]
[1738717455462,0.01,98652.0,98651.0,0.12164]
[1738717455674,0.01,98652.0,98651.0,0.14464]
[1738717455870,0.01,98652.0,98651.0,0.023]
[1738717456120,0.01,98645.0,98644.0,0.15]
[1738717456523,0.01,98645.0,98642.0,0.121651]
[1738717457068,0.01,98648.0,98647.0,0.121645]
[1738717457286,0.01,98648.0,98647.0,0.144645]
[1738717457517,0.01989478,98651.0,98650.0,0.144642]
[1738717457855,0.1622317,98690.0,98651.0,0.023]
[1738717458059,0.01,98659.0,98658.0,0.144632]
[1738717458285,0.1543,98689.0,98658.0,0.144632]
[1738717458286,0.01,98669.0,98664.0,0.15]
[1738717458491,0.01,98674.0,98665.0,0.12538506]
[1738717458695,0.0473,98689.0,98666.0,0.173]
[1738717458912,0.01,98688.0,98672.0,0.15]
[1738717459112,0.01,98676.0,98672.0,0.10238506]
[1738717459313,0.01,98676.0,98675.0,0.120611]
[1738717459706,0.01,98676.0,98673.0,0.173]
[1738717459906,0.01,98674.0,98673.0,0.271613]
[1738717460147,0.01,98677.0,98675.0,0.121611]
[1738717460347,0.0523,98689.0,98688.0,0.121595]
[1738717460502,0.005,98689.0,98688.0,0.121595]
[1738717460927,0.005,98685.0,98684.0,0.1216]
[1738717461140,0.0001067,98690.0,98686.0,0.121597]
[1738717461141,0.005,98687.0,98686.0,0.121597]
[1738717461327,0.0001067,98690.0,98689.0,0.121594]
[1738717461532,0.0001067,98690.0,98689.0,0.22397906]
[1738717462086,0.0001067,98690.0,98689.0,0.24697906]
[1738717463226,0.0001067,98690.0,98689.0,0.24797906]
[1738717463427,0.0001067,98690.0,98689.0,0.30136597]
[1738717463810,0.005,98699.0,98689.0,0.30136597]
[1738717463811,0.0001067,98713.0,98712.0,0.121565]
[1738717463941,0.0001067,98713.0,98712.0,0.22395006]
[1738717464143,0.0001067,98713.0,98712.0,0.37395006]
[1738717464906,0.0001067,98713.0,98712.0,0.42083533]
[1738717465095,0.0001067,98713.0,98712.0,0.45863293]
[1738717465953,0.0001067,98713.0,98712.0,0.4449343]
[1738717466090,0.0001067,98713.0,98712.0,0.4439343]
[1738717466290,0.0001067,98713.0,98712.0,0.4449343]
[1738717469228,0.0001067,98713.0,98712.0,0.8757343]
[1738717469430,7e-07,98713.0,98712.0,0.87583952]
[1738717470399,7e-07,98713.0,98712.0,0.8941529]
[1738717470792,0.0001066,98748.0,98714.0,0.00010522]
[1738717470983,0.0001066,98748.0,98747.0,0.121522]
[1738717471195,0.0001066,98748.0,98747.0,0.22390706]
[1738717471382,0.0001066,98748.0,98747.0,0.121522]
[1738717472119,0.0001066,98748.0,98747.0,0.22390706]
[1738717472733,0.00740138,98756.0,98747.0,0.10238506]
[1738717472910,0.0494,98779.0,98758.0,0.121508]
[1738717473125,0.0494,98779.0,98750.0,0.00121488]
[1738717473348,0.0491,98779.0,98764.0,0.1215]
[1738717473546,0.0491,98779.0,98765.0,0.00121486]
[1738717473915,0.0491,98779.0,98753.0,0.16202]
[1738717474081,0.00740138,98757.0,98756.0,0.121511]
[1738717474301,0.26696241,98800.0,98770.0,0.121494]
[1738717474458,0.121467,98792.0,98771.0,0.00121477]
[1738717474660,0.25663957,98800.0,98769.0,0.00121473]
[1738717474846,0.25663957,98800.0,98757.0,0.00121477]
[1738717475039,0.121466,98793.0,98772.0,0.121491]
[1738717475266,0.121466,98793.0,98773.0,0.00121474]
[1738717475466,0.121473,98787.0,98765.0,0.161999]
[1738717475679,0.00740138,98766.0,98758.0,0.14181782]
[1738717475894,0.00740138,98765.0,98756.0,0.01031067]
[1738717476045,0.00740138,98765.0,98752.0,0.23116018]
[1738717476273,0.00740138,98754.0,98748.0,0.01016198]
[1738717476473,0.00740138,98753.0,98735.0,0.162049]
[1738717476700,0.00740138,98746.0,98733.0,0.0099916]
[1738717476865,0.00740138,98746.0,98730.0,0.08116018]
[1738717477072,0.00740138,98746.0,98722.0,0.01996153]
[1738717477278,0.00740138,98737.0,98731.0,0.08116018]
[1738717477489,0.00740138,98737.0,98723.0,0.12870493]
[1738717477490,0.00740138,98741.0,98739.0,0.121531]
[1738717477688,0.0494,98763.0,98737.0,0.00121521]
[1738717477895,0.0001066,98789.0,98723.0,0.12870493]
[1738717477896,0.00740138,98767.0,98753.0,0.023]
[1738717478103,0.046,98783.0,98755.0,0.15]
[1738717478304,0.046,98783.0,98757.0,0.15]
[1738717478511,0.046,98783.0,98759.0,0.15]
[1738717478716,0.00740138,98767.0,98756.0,0.04156229]
[1738717478918,0.00740138,98767.0,98766.0,0.121498]
[1738717479120,0.00740138,98767.0,98763.0,0.121502]
[1738717479322,0.161965,98787.0,98753.0,0.01016604]
[1738717479323,0.161958,98791.0,98764.0,0.01348656]
[1738717479528,0.00740138,98767.0,98765.0,0.1215]
[1738717479727,0.00740138,98770.0,98769.0,0.121494]
[1738717480008,0.00740138,98771.0,98756.0,0.023]
[1738717480191,0.00099287,98790.0,98766.0,0.001]
[1738717480192,0.00740138,98768.0,98766.0,0.001]
[1738717480400,0.00740138,98767.0,98765.0,0.1215]
[1738717480601,0.00740138,98767.0,98763.0,0.121502]
[1738717480891,0.0001066,98789.0,98760.0,0.15]
[1738717481091,0.00740138,98767.0,98762.0,0.00121486]
[1738717481228,0.00740138,98770.0,98762.0,0.00121486]
[1738717481437,0.121474,98787.0,98771.0,0.121492]
[1738717481639,0.0001066,98789.0,98765.0,0.162]
[1738717481640,0.00740138,98767.0,98765.0,0.001]
[1738717481833,0.0001066,98789.0,98766.0,0.0284506]
[1738717482039,0.0001066,98789.0,98762.0,0.0012148]
[1738717482360,0.0001066,98789.0,98769.0,0.121494]
[1738717482361,0.00740138,98770.0,98769.0,0.121494]
[1738717482556,0.00740138,98767.0,98764.0,0.162001]
[1738717482756,0.00740138,98767.0,98765.0,0.121499]
[1738717482958,0.0001066,98789.0,98773.0,0.12149]
[1738717483159,0.00740138,98767.0,98758.0,0.00121474]
[1738717483360,0.00740138,98767.0,98759.0,0.15]
[1738717483568,0.00740138,98767.0,98760.0,0.121506]
[1738717483783,0.00740138,98770.0,98765.0,0.121499]
[1738717483985,0.00740138,98767.0,98766.0,0.00121485]
[1738717484234,0.00740138,98767.0,98766.0,0.04752249]
[1738717484389,0.161966,98786.0,98766.0,0.121499]
[1738717484601,0.00740138,98767.0,98766.0,0.121499]
[1738717485128,0.00740138,98756.0,98723.0,0.18838787]
[1738717485335,0.1620676,98789.0,98735.0,0.162048]
[1738717485336,0.00740138,98746.0,98735.0,0.162048]
[1738717485527,0.00740138,98746.0,98743.0,0.121526]
[1738717485749,0.00740138,98746.0,98745.0,0.121525]
[1738717486399,0.1215906,98779.0,98748.0,0.162028]
[1738717486606,0.0001066,98779.0,98766.0,0.121498]
[1738717486825,0.0001066,98779.0,98767.0,0.12271185]
[1738717487022,0.00740138,98765.0,98761.0,0.121504]
[1738717487211,0.0001066,98779.0,98767.0,0.121498]
[1738717487458,0.00740138,98768.0,98767.0,0.121498]
[1738717487635,0.00740138,98764.0,98763.0,0.121501]
[1738717488110,0.0001066,98779.0,98765.0,0.1215]
[1738717488343,0.00740138,98766.0,98765.0,0.1215]
[1738717488583,0.0001066,98779.0,98768.0,0.121496]
[1738717488874,0.00740138,98769.0,98768.0,0.121496]
[1738717489108,0.00740138,98769.0,98766.0,0.121498]
[1738717489321,0.00740138,98765.0,98764.0,0.121501]
[1738717489541,0.00740138,98765.0,98761.0,0.121505]
[1738717489746,0.00740138,98763.0,98761.0,0.001]
[1738717489922,0.00740138,98763.0,98755.0,0.00121487]
[1738717490133,0.00740138,98763.0,98756.0,0.121511]
[1738717490343,0.00740138,98763.0,98755.0,0.03699088]
[1738717490344,0.00740138,98763.0,98755.0,0.00121487]
[1738717490545,0.00740138,98763.0,98754.0,0.121513]
[1738717490757,0.00740138,98763.0,98752.0,0.271515]
[1738717491183,0.16533168,98770.0,98731.0,0.08116018]
[1738717491184,0.00740138,98752.0,98731.0,0.08116018]
[1738717491328,0.00740138,98752.0,98748.0,0.12152]
[1738717491733,0.00740138,98752.0,98749.0,0.121519]
[1738717491936,0.00740138,98752.0,98747.0,0.121521]
[1738717492171,0.00740138,98752.0,98748.0,0.12152]
[1738717492357,0.00740138,98752.0,98751.0,0.121517]
[1738717492558,0.161984,98775.0,98751.0,0.121517]
[1738717492559,0.00099287,98780.0,98751.0,0.028355]
[1738717492736,0.00740138,98762.0,98752.0,0.00121491]
[1738717492938,0.00740138,98762.0,98745.0,0.00121494]
[1738717493310,0.00740138,98762.0,98759.0,0.121507]
[1738717493524,0.12149,98774.0,98759.0,0.121507]
[1738717493734,0.00740138,98762.0,98760.0,0.121506]
[1738717494495,0.00740138,98762.0,98760.0,0.15119422]
[1738717494696,0.00740138,98762.0,98760.0,0.00121493]
[1738717494892,0.00740138,98762.0,98760.0,0.121506]
[1738717495058,0.00740138,98762.0,98752.0,0.151]
[1738717495263,0.00740138,98762.0,98753.0,0.00121492]
[1738717495699,0.00740138,98778.0,98758.0,0.08116018]
[1738717495894,0.0001066,98779.0,98777.0,0.121485]
[1738717496138,0.00740138,98778.0,98774.0,0.121488]
[1738717496336,0.02869,98767.0,98766.0,0.121499]
[1738717497773,0.12885738,98801.0,98800.0,3.04961925]
[1738717497976,0.00740138,98801.0,98800.0,3.04961925]
[1738717498112,0.12885738,98801.0,98800.0,3.04961925]
[1738717498919,0.23124244,98801.0,98800.0,3.04961925]
[1738717502015,0.29211184,98801.0,98800.0,3.04961925]
[1738717502628,0.30211184,98801.0,98800.0,3.05061925]
[1738717502990,0.29211184,98801.0,98800.0,3.05061925]
[1738717503390,0.30211184,98801.0,98800.0,3.05061925]
[1738717503838,0.41543823,98801.0,98800.0,2.36710726]
[1738717504064,0.33893823,98801.0,98800.0,2.28620726]
[1738717504269,0.40883324,98801.0,98800.0,2.28520726]
[1738717504495,0.32893823,98801.0,98800.0,2.28520726]
[1738717504692,0.30739437,98801.0,98800.0,2.28520726]
[1738717505343,0.31439437,98801.0,98800.0,2.28620726]
[1738717505553,0.30739437,98801.0,98800.0,2.28520726]
[1738717505698,0.30439437,98801.0,98800.0,2.28620726]
[1738717506041,0.31439437,98801.0,98800.0,2.28620726]
[1738717506266,0.38024499,98801.0,98800.0,2.28620726]
[1738717506489,0.31439437,98801.0,98800.0,2.28620726]
[1738717506699,0.31439437,98801.0,98800.0,2.18499226]
[1738717506903,0.50593532,98801.0,98800.0,1.70503763]
[1738717507110,0.47439437,98801.0,98800.0,1.70503763]
[1738717507266,0.50593359,98801.0,98800.0,1.68479463]
[1738717507464,2.09993813,98801.0,98800.0,1.565621]
[1738717507673,2.09993813,98801.0,98800.0,1.55137839]
[1738717507874,2.09993813,98801.0,98800.0,1.40529141]
[1738717508054,2.08253675,98801.0,98800.0,1.35449141]
[1738717508422,2.09993813,98801.0,98800.0,1.25327641]
[1738717508573,2.09993813,98801.0,98800.0,1.1892886]
[1738717508754,2.09993813,98801.0,98800.0,0.00501219]
[1738717508939,2.06839891,98801.0,98800.0,0.00501219]
[1738717509381,2.09992905,98801.0,98800.0,1.9e-07]
[1738717509544,2.20682905,98801.0,98800.0,1.9e-07]
[1738717509747,0.12889938,98767.0,98766.0,0.00022428]
[1738717509939,0.23128444,98767.0,98766.0,0.00022428]
[1738717510820,0.30224444,98767.0,98766.0,0.00022428]
[1738717510963,0.29224444,98767.0,98766.0,0.00122428]
[1738717511213,0.30224444,98767.0,98766.0,0.00122428]
[1738717511417,0.31217186,98767.0,98766.0,0.00122428]
[1738717511681,0.37578755,98767.0,98766.0,0.00122428]
[1738717511894,0.30217186,98767.0,98766.0,0.00122428]
[1738717512696,0.31217186,98767.0,98766.0,0.00122428]
[1738717513566,0.31217186,98767.0,98766.0,0.00022428]
[1738717514021,0.31417186,98767.0,98766.0,0.00022428]
[1738717514231,0.37798755,98767.0,98766.0,0.00022428]
[1738717514600,0.64486755,98767.0,98766.0,2.8e-07]
[1738717515071,0.62746617,98767.0,98766.0,2.8e-07]
[1738717515240,0.42105186,98767.0,98766.0,2.8e-07]
[1738717515477,0.41365048,98767.0,98766.0,2.8e-07]
[1738717515683,0.41105186,98767.0,98766.0,2.8e-07]
[1738717515807,0.33276306,98767.0,98766.0,2.8e-07]
[1738717516009,0.21126506,98767.0,98766.0,2.8e-07]
[1738717516458,0.21866644,98767.0,98766.0,2.8e-07]
[1738717516865,0.21666644,98767.0,98766.0,2.8e-07]
[1738717517241,0.22566644,98767.0,98766.0,0.00100028]
[1738717517455,0.21666644,98767.0,98766.0,2.8e-07]
[1738717517826,0.21766644,98767.0,98766.0,2.8e-07]
[1738717518236,0.27862644,98767.0,98766.0,2.8e-07]
[1738717518436,0.31248089,98767.0,98766.0,2.8e-07]
[1738717518926,0.27862644,98767.0,98766.0,2.8e-07]
[1738717519309,0.27122506,98767.0,98766.0,2.8e-07]
[1738717519685,0.27862644,98767.0,98766.0,2.8e-07]
[1738717520094,0.27762644,98767.0,98766.0,2.8e-07]
[1738717520463,0.28162644,98767.0,98766.0,2.8e-07]
[1738717520952,0.004,98767.0,98766.0,2.8e-07]
[1738717521067,0.009,98767.0,98766.0,0.12249928]
[1738717521263,0.11878644,98767.0,98766.0,0.00100028]
[1738717521486,0.01640138,98767.0,98766.0,0.00100028]
[1738717521681,0.00740138,98767.0,98766.0,2.8e-07]
[1738717522126,0.00740138,98767.0,98766.0,0.00200028]
[1738717522325,0.17074644,98767.0,98766.0,0.00200028]
[1738717522569,0.20593098,98767.0,98766.0,0.00200028]
[1738717523565,0.17074644,98767.0,98766.0,2.8e-07]
[1738717523943,0.17074644,98767.0,98766.0,0.00100028]
[1738717524176,0.17074644,98767.0,98766.0,2.8e-07]
[1738717524606,0.19163006,98767.0,98766.0,2.8e-07]
[1738717525721,0.13067006,98767.0,98766.0,2.8e-07]
[1738717525874,0.11178644,98767.0,98766.0,2.8e-07]
[1738717526330,0.00940138,98767.0,98766.0,2.8e-07]
[1738717526508,0.00740138,98774.0,98766.0,2.8e-07]
[1738717526666,0.121461,98797.0,98790.0,0.0764]
[1738717526872,0.121463,98795.0,98790.0,0.0764]
[1738717527225,0.10238506,98794.0,98790.0,0.0764]
[1738717527458,0.10238506,98794.0,98791.0,0.121467]
[1738717527665,0.10238506,98794.0,98791.0,0.121468]
[1738717528089,0.0001068,98801.0,98800.0,0.121457]
[1738717528689,0.0001068,98801.0,98798.0,0.121458]
[1738717528890,0.00740138,98799.0,98798.0,0.121458]
[1738717529218,0.00740138,98796.0,98795.0,0.121463]
[1738717529417,0.00740138,98793.0,98792.0,0.0492]
[1738717529802,0.00740138,98793.0,98792.0,0.170667]
[1738717530416,0.00740138,98796.0,98792.0,0.0492]
[1738717530698,0.00740138,98795.0,98794.0,0.121463]
[1738717530898,0.00740138,98795.0,98792.0,0.0492]
[1738717530899,0.00740138,98798.0,98797.0,0.121461]
[1738717531347,0.00740138,98799.0,98796.0,0.161949]
[1738717531547,0.00750818,98801.0,98800.0,0.121457]
[1738717531752,0.0001068,98801.0,98800.0,0.121457]
[1738717531955,0.0001068,98801.0,98800.0,0.13065912]
[1738717533008,0.0001068,98801.0,98800.0,0.00920212]
[1738717533216,0.01966436,98801.0,98800.0,0.00920212]
[1738717533419,0.00750818,98801.0,98794.0,0.121463]
[1738717533622,0.00750818,98801.0,98792.0,0.0492]
[1738717533623,0.00740138,98793.0,98792.0,0.0492]
[1738717533861,0.00740138,98791.0,98777.0,0.121485]
[1738717534061,0.00740138,98791.0,98775.0,0.0458]
[1738717534062,0.10978644,98791.0,98775.0,0.0458]
[1738717534271,0.10978644,98791.0,98775.0,0.207782]
[1738717534606,0.10978644,98791.0,98779.0,0.161977]
[1738717534803,0.10978644,98791.0,98783.0,0.121478]
[1738717534958,0.10978644,98791.0,98781.0,0.121479]
[1738717535157,0.01884754,98792.0,98784.0,0.161969]
[1738717535326,0.02624892,98791.0,98790.0,0.0794]
[1738717535747,0.12863398,98791.0,98790.0,0.0794]
[1738717535949,0.25010198,98791.0,98790.0,0.0794]
[1738717536144,0.28725868,98791.0,98790.0,0.003]
[1738717536356,0.12863398,98791.0,98785.0,0.083]
[1738717536581,0.00740138,98786.0,98785.0,0.083]
[1738717537535,0.01884754,98790.0,98785.0,0.083]
[1738717537767,0.00740138,98786.0,98785.0,0.083]
[1738717537972,0.01884754,98790.0,98789.0,0.121471]
[1738717538613,0.00740138,98792.0,98791.0,0.121468]
[1738717539162,0.00740138,98792.0,98791.0,0.13019558]
[1738717539366,0.0001068,98793.0,98791.0,0.13019558]
[1738717539771,0.0001068,98793.0,98792.0,0.00121453]
[1738717540340,0.0001068,98793.0,98792.0,0.13294211]
[1738717540899,0.0001068,98793.0,98792.0,0.13594211]
[1738717541100,0.0001068,98793.0,98792.0,0.13294211]
[1738717541494,0.00740138,98802.0,98800.0,0.121457]
[1738717542099,0.00740138,98802.0,98800.0,0.00871151]
[1738717542433,0.00740138,98802.0,98799.0,0.121458]
[1738717542626,0.00740138,98802.0,98800.0,0.00871151]
[1738717543353,0.00740138,98803.0,98800.0,0.00871151]
[1738717543563,0.00740138,98802.0,98800.0,0.01171151]
[1738717543960,0.0001066,98812.0,98800.0,0.01171151]
[1738717543961,0.00750818,98801.0,98800.0,0.01171151]
[1738717544385,0.18415837,98820.0,98800.0,0.01171151]
[1738717544386,6.9e-07,98820.0,98819.0,0.121434]
[1738717544590,0.00099287,98840.0,98839.0,0.121409]
[1738717544784,0.00099287,98840.0,98839.0,0.170509]
[1738717545025,0.00099287,98840.0,98839.0,0.262231]
[1738717545202,0.00099287,98840.0,98839.0,0.26101722]
[1738717545405,0.00099287,98840.0,98839.0,0.31949554]
[1738717545609,0.0001066,98845.0,98843.0,0.121404]
[1738717545851,0.0001066,98845.0,98843.0,0.22500286]
[1738717546050,0.00074584,98869.0,98843.0,0.22500286]
[1738717546051,0.00074584,98869.0,98861.0,0.403882]
[1738717546183,0.00074584,98869.0,98861.0,0.53998985]
[1738717546362,0.00074584,98869.0,98861.0,0.57962504]
[1738717546562,0.00074584,98869.0,98861.0,0.6022159]
[1738717546990,0.00074584,98869.0,98861.0,0.57962504]
[1738717547189,0.0079081,98862.0,98861.0,0.6252159]
[1738717547481,0.0079081,98862.0,98861.0,0.6282159]
[1738717547689,0.0079081,98862.0,98861.0,0.4258109]
[1738717547957,0.0079081,98862.0,98861.0,0.52819596]
[1738717547958,0.00385559,98862.0,98861.0,0.52819596]
[1738717548133,0.00385559,98862.0,98861.0,0.57378682]
[1738717548338,0.00385559,98862.0,98861.0,0.55078682]
[1738717548575,0.00385559,98862.0,98861.0,0.52819596]
[1738717548789,0.00385559,98862.0,98861.0,0.57406215]
[1738717551303,0.00385559,98862.0,98861.0,0.59706215]
[1738717552331,0.01435299,98864.0,98863.0,0.27138]
[1738717552630,0.01435299,98864.0,98863.0,0.39676506]
[1738717552872,0.01435299,98864.0,98863.0,0.38233147]
[1738717553077,0.00074584,98869.0,98863.0,0.44080979]
[1738717553282,0.00074584,98869.0,98865.0,0.294377]
[1738717553483,0.00074584,98869.0,98868.0,0.294373]
[1738717553654,0.0125967,98874.0,98873.0,0.271367]
[1738717553873,0.0125967,98874.0,98873.0,0.37375206]
[1738717554270,0.0125967,98874.0,98873.0,0.271367]
[1738717554473,0.0125967,98874.0,98873.0,0.27989796]
[1738717554683,0.0125967,98874.0,98873.0,0.12989796]
[1738717554850,0.0125967,98874.0,98873.0,0.19137628]
[1738717555612,0.0125967,98874.0,98873.0,0.29376134]
[1738717555986,0.0125967,98874.0,98873.0,0.29076134]
[1738717556154,0.0125967,98874.0,98873.0,0.44076134]
[1738717556363,0.0125967,98874.0,98873.0,0.44276134]
[1738717556619,0.0125967,98874.0,98873.0,0.44076134]
[1738717556833,0.0125967,98874.0,98873.0,0.44276134]
[1738717557252,0.0125967,98874.0,98873.0,0.46576134]
[1738717557484,0.0125967,98874.0,98873.0,0.51296134]
[1738717557622,0.0125967,98874.0,98873.0,0.50896134]
[1738717558091,0.0125967,98874.0,98873.0,0.51096134]
[1738717558434,0.001011,98880.0,98878.0,0.14996]
[1738717558633,0.00746441,98879.0,98878.0,0.38686496]
[1738717558859,0.00746441,98879.0,98878.0,0.39417114]
[1738717559882,0.00746441,98879.0,98878.0,0.37117114]
[1738717560382,0.00746441,98879.0,98878.0,0.37317114]
[1738717560699,0.00746441,98879.0,98878.0,0.39617114]
[1738717560817,0.00746441,98879.0,98878.0,0.39817114]
[1738717561227,0.00746441,98879.0,98878.0,0.39417114]
[1738717561424,0.0240672,98962.0,98896.0,0.161786]
[1738717561634,0.16169,98955.0,98914.0,0.1994]
[1738717561840,0.00099188,98960.0,98940.0,0.121284]
[1738717562036,0.00099188,98960.0,98941.0,0.0121284]
[1738717562237,0.16533168,98951.0,98941.0,0.00847991]
[1738717562484,0.18033018,98959.0,98941.0,0.00847991]
[1738717562485,0.161701,98948.0,98941.0,0.00847991]
[1738717562657,0.26408606,98948.0,98929.0,0.121298]
[1738717562890,0.0240672,98948.0,98936.0,0.0793]
[1738717563123,0.0240672,98948.0,98937.0,0.02628452]
[1738717563343,0.0240672,98948.0,98937.0,0.00847991]
[1738717563758,0.0240672,98948.0,98936.0,0.0793]
[1738717564393,0.0240672,98948.0,98936.0,0.001]
[1738717564394,0.161705,98946.0,98936.0,0.001]
[1738717564626,0.0240672,98948.0,98925.0,0.08116018]
[1738717564627,0.0240672,98948.0,98925.0,0.08237297]
[1738717564851,0.0240672,98948.0,98926.0,0.00121279]
[1738717565094,0.0240672,98948.0,98927.0,0.12848086]
[1738717565297,0.0240672,98948.0,98928.0,0.00121275]
[1738717565535,0.161703,98947.0,98928.0,0.10238506]
[1738717565770,0.1453432,98948.0,98929.0,0.00843913]
[1738717566015,0.0240672,98948.0,98929.0,0.00843913]
[1738717566223,0.12645226,98948.0,98929.0,0.00843913]
[1738717566423,0.121297,98930.0,98929.0,0.00843913]
[1738717566698,0.121297,98930.0,98904.0,0.0822]
[1738717566699,0.10238506,98930.0,98904.0,0.0822]
[1738717566926,0.16533168,98920.0,98905.0,0.08116018]
[1738717567139,0.09527604,98948.0,98906.0,0.01754917]
[1738717567140,0.18939888,98930.0,98906.0,0.01754917]
[1738717567345,0.121302,98927.0,98906.0,0.01754917]
[1738717567543,0.01864829,98919.0,98906.0,0.01633602]
[1738717567746,0.01864829,98919.0,98907.0,0.00783459]
[1738717567982,0.01864829,98919.0,98908.0,0.10359814]
[1738717568195,0.02961329,98919.0,98909.0,0.00784431]
[1738717568432,0.02961329,98919.0,98909.0,0.11022937]
[1738717568642,0.02961329,98919.0,98912.0,0.023]
[1738717568830,0.02961329,98919.0,98914.0,0.023]
[1738717569027,0.02961329,98919.0,98915.0,0.1463158]
[1738717569255,0.010965,98919.0,98915.0,0.15416011]
[1738717569452,0.010965,98919.0,98917.0,0.121312]
[1738717569653,0.010965,98919.0,98918.0,0.10238506]
[1738717569890,0.010965,98919.0,98918.0,0.11023534]
[1738717570068,0.010965,98919.0,98918.0,0.13731523]
[1738717570280,0.010965,98919.0,98918.0,0.13852812]
[1738717570481,0.010965,98919.0,98918.0,0.13731523]
[1738717570860,0.010965,98919.0,98918.0,0.13852811]
[1738717571058,0.010965,98919.0,98918.0,0.25862723]
[1738717571289,0.010965,98919.0,98918.0,0.13931523]
[1738717571496,0.010965,98919.0,98918.0,0.11023534]
[1738717572172,0.010965,98919.0,98918.0,0.12042266]
[1738717572535,0.010965,98919.0,98918.0,0.00785028]
[1738717572738,0.010965,98919.0,98880.0,0.171811]
[1738717572739,0.010965,98919.0,98909.0,0.15]
[1738717572934,0.010965,98919.0,98911.0,0.15]
[1738717573256,0.121316,98915.0,98904.0,0.0822]
[1738717573477,0.010965,98919.0,98918.0,0.001]
[1738717573783,0.132276,98919.0,98918.0,0.00885028]
[1738717573995,0.132276,98919.0,98918.0,0.001]
[1738717574354,0.11335006,98919.0,98893.0,0.01010483]
[1738717574540,0.16533168,98910.0,98896.0,0.00785028]
[1738717574891,0.161776,98902.0,98885.0,0.15]
[1738717575201,0.0002329,98902.0,98886.0,0.00121331]
[1738717575421,0.0002329,98902.0,98888.0,0.121349]
[1738717575645,0.0002329,98902.0,98900.0,0.121334]
[1738717575845,0.0002329,98902.0,98901.0,0.16334659]
[1738717576189,0.0002329,98902.0,98901.0,0.15905907]
[1738717576419,0.0002329,98902.0,98901.0,0.00784588]
[1738717576786,0.0002329,98902.0,98891.0,0.121344]
[1738717576950,0.04923287,98902.0,98892.0,0.0078673]
[1738717577161,0.04923287,98902.0,98890.0,0.121346]
[1738717577363,0.04923287,98902.0,98896.0,0.001]
[1738717577545,0.04923287,98902.0,98892.0,0.121344]
[1738717577754,0.04923287,98902.0,98893.0,0.0078673]
[1738717578038,0.04923287,98902.0,98897.0,0.121338]
[1738717578279,0.04923287,98902.0,98894.0,0.0078673]
[1738717578477,0.04923287,98902.0,98896.0,0.001]
[1738717578478,0.01884614,98901.0,98896.0,0.001]
[1738717578864,0.01884614,98901.0,98890.0,0.121346]
[1738717579039,0.01884614,98901.0,98897.0,0.0078673]
[1738717579219,0.01907904,98901.0,98893.0,0.001]
[1738717579848,0.01884614,98900.0,98894.0,0.0078673]